fUSD/lending_fUSD_20240606
["ID","MTS","AMOUNT","RATE_DAILY","PERIOD"]
[328669437,1717686678887,-500.0,0.00029315,4]
[328669438,1717686678897,-500.0,0.00029315,2]
[328669439,1717686678906,-636.0,0.00029315,4]
[328669440,1717686678915,-500.0,0.00029315,4]
[328669441,1717686678927,-500.0,0.00029315,4]
[328669442,1717686678936,-369.15805361,0.00029315,4]
[328669443,1717686678948,-500.0,0.00029315,4]
[328669444,1717686678958,-500.0,0.00029315,4]
[328669445,1717686678968,-500.0,0.00029315,4]
[328669446,1717686678978,-336.44632251,0.00029315,4]
[328669447,1717686678988,-500.0,0.00029315,4]
[328669448,1717686678998,-500.0,0.00029315,4]
[328669449,1717686679008,-517.51,0.00029315,4]
[328669450,1717686679018,-500.0,0.00029315,4]
[328669451,1717686679027,-500.0,0.00029315,4]
[328669452,1717686679037,-500.0,0.00029315,4]
[328669453,1717686679047,-1016.7,0.00029315,4]
[328669454,1717686679056,-500.0,0.00029315,4]
[328669455,1717686679065,-500.0,0.00029315,4]
[328669456,1717686679075,-500.0,0.00029315,4]
[328669457,1717686679084,-167.51066333,0.00029315,4]
[328669458,1717686679094,-605.74590195,0.00029315,4]
[328669459,1717686679103,-500.0,0.00029315,4]
[328669460,1717686679112,-500.0,0.00029315,4]
[328669461,1717686679122,-500.0,0.00029315,4]
[328669462,1717686679131,-469.35007593,0.00029315,4]
[328669463,1717686679141,-500.0,0.00029315,4]
[328669464,1717686679150,-500.0,0.00029315,4]
[328669465,1717686679160,-500.0,0.00029315,4]
[328669466,1717686679170,-500.0,0.00029315,4]
[328669467,1717686679180,-498.59742909,0.00029315,4]
[328669468,1717686679190,-500.0,0.00029315,4]
[328669469,1717686679200,-331.2566077,0.00029315,4]
[328669470,1717686679210,-500.0,0.00029315,4]
[328669471,1717686679220,-500.0,0.00029315,4]
[328669472,1717686679230,-500.0,0.00029315,4]
[328669473,1717686679240,-500.0,0.00029315,4]
[328669474,1717686679249,-500.0,0.00029315,4]
[328669475,1717686679259,-500.0,0.00029315,4]
[328669476,1717686679268,-500.0,0.00029315,4]
[328669477,1717686679278,-166.95929247,0.00029315,4]
[328669478,1717686679287,-150.0,0.00029315,4]
[328669479,1717686679297,-500.0,0.00029315,4]
[328669480,1717686679307,-500.0,0.00029315,4]
[328669481,1717686679316,-573.51,0.00029315,4]
[328669482,1717686679326,-502.72,0.00029315,4]
[328669483,1717686679335,-500.0,0.00029315,4]
[328669484,1717686679345,-500.0,0.00029315,4]
[328669485,1717686679354,-778.52,0.00029315,4]
[328669486,1717686679364,-500.0,0.00029315,4]
[328669487,1717686679374,-565.04,0.00029315,4]
[328669488,1717686679384,-1965.25,0.00029315,4]
[328669489,1717686679393,-500.0,0.00029315,4]
[328669490,1717686679403,-1598.65,0.00029315,4]
[328669491,1717686679412,-952.89,0.00029315,4]
[328669492,1717686679422,-500.0,0.00029315,4]
[328669493,1717686679433,-886.3,0.00029315,4]
[328669494,1717686679443,-2073.66,0.00029315,4]
[328669495,1717686679453,-3741.02,0.00029315,4]
[328669496,1717686679462,-500.0,0.00029315,4]
[328669497,1717686679472,-964.49,0.00029315,4]
[328669498,1717686679482,-500.0,0.00029315,4]
[328669499,1717686679492,-500.0,0.00029315,4]
[328669500,1717686679502,-500.0,0.00029315,4]
[328669501,1717686679511,-489.88249754,0.00029315,4]
[328669502,1717686679521,-500.0,0.00029315,4]
[328669503,1717686679532,-500.0,0.00029315,4]
[328669504,1717686679547,-500.0,0.00029315,4]
[328669505,1717686679557,-1778.3,0.00029315,4]
[328669506,1717686679567,-500.0,0.00029315,4]
[328669507,1717686679578,-500.0,0.00029315,4]
[328669508,1717686679587,-500.0,0.00029315,4]
[328669509,1717686679597,-493.17654818,0.00029315,4]
[328669510,1717686679606,-958.91,0.00029315,4]
[328669511,1717686679618,-500.0,0.00029315,4]
[328669512,1717686679627,-500.0,0.00029315,4]
[328669513,1717686679636,-1603.64,0.00029315,4]
[328669514,1717686679646,-1509.84,0.00029315,4]
[328669515,1717686679656,-500.0,0.00029315,4]
[328669516,1717686679665,-500.0,0.00029315,4]
[328669517,1717686679675,-500.0,0.00029315,4]
[328669518,1717686679686,-1090.54,0.00029315,4]
[328669519,1717686679695,-500.0,0.00029315,4]
[328669520,1717686679705,-500.0,0.00029315,4]
[328669521,1717686679715,-500.0,0.00029315,4]
[328669522,1717686679725,-500.0,0.00029315,4]
[328669523,1717686679734,-500.0,0.00029315,4]
[328669524,1717686679744,-686.36,0.00029315,4]
[328669525,1717686679753,-500.0,0.00029315,4]
[328669526,1717686679763,-500.0,0.00029315,4]
[328669527,1717686679773,-1463.21,0.00029315,4]
[328669528,1717686679783,-723.48,0.00029315,4]
[328669529,1717686679793,-958.42,0.00029315,4]
[328669530,1717686679802,-500.0,0.00029315,4]
[328669531,1717686679812,-633.24,0.00029315,4]
[328669532,1717686679823,-608.51,0.00029315,4]
[328669533,1717686679833,-500.0,0.00029315,4]
[328669534,1717686679843,-500.0,0.00029315,4]
[328669535,1717686679853,-500.0,0.00029315,4]
[328669536,1717686679863,-880.06,0.00029315,4]
[328669537,1717686679874,-500.0,0.00029315,4]
[328669538,1717686680057,-500.0,0.00029315,4]
[328669539,1717686680070,-500.0,0.00029315,4]
[328669540,1717686680081,-916.95,0.00029315,4]
[328669541,1717686680091,-500.0,0.00029315,4]
[328669542,1717686680100,-500.0,0.00029315,4]
[328669543,1717686680110,-500.0,0.00029315,4]
[328669544,1717686680119,-500.0,0.00029315,4]
[328669545,1717686680129,-500.0,0.00029315,4]
[328669546,1717686680140,-500.0,0.00029315,4]
[328669547,1717686680150,-2146.13,0.00029315,4]
[328669548,1717686680160,-500.0,0.00029315,4]
[328669549,1717686680169,-500.0,0.00029315,4]
[328669550,1717686680180,-4182.97,0.00029315,4]
[328669551,1717686680190,-2172.84,0.00029315,4]
[328669552,1717686680199,-878.93,0.00029315,4]
[328669553,1717686680208,-500.0,0.00029315,4]
[328669554,1717686680218,-500.0,0.00029315,4]
[328669555,1717686680228,-500.0,0.00029315,4]
[328669556,1717686680238,-652.65,0.00029315,4]
[328669557,1717686680248,-500.0,0.00029315,4]
[328669558,1717686680258,-500.0,0.00029315,4]
[328669559,1717686680267,-943.09,0.00029315,4]
[328669560,1717686680276,-1798.64,0.00029315,4]
[328669561,1717686680285,-584.12,0.00029315,4]
[328669562,1717686680295,-2073.32,0.00029315,4]
[328669563,1717686680304,-500.0,0.00029315,4]
[328669564,1717686680314,-1369.53,0.00029315,4]
[328669565,1717686680323,-500.0,0.00029315,4]
[328669566,1717686680333,-500.0,0.00029315,4]
[328669567,1717686680342,-462.09108772,0.00029315,4]
[328669568,1717686680351,-1101.45,0.00029315,4]
[328669569,1717686680361,-1246.45,0.00029315,4]
[328669570,1717686680370,-551.64,0.00029315,4]
[328669571,1717686680380,-576.02,0.00029315,4]
[328669572,1717686680389,-500.0,0.00029315,4]
[328669573,1717686680398,-897.91,0.00029315,4]
[328669574,1717686680408,-500.0,0.00029315,4]
[328669575,1717686680417,-1745.14,0.00029315,4]
[328669576,1717686680428,-1224.62,0.00029315,4]
[328669577,1717686680438,-500.0,0.00029315,4]
[328669578,1717686680447,-528.54,0.00029315,4]
[328669579,1717686680456,-500.0,0.00029315,4]
[328669580,1717686680466,-1556.05,0.00029315,4]
[328669581,1717686680476,-2487.78,0.00029315,4]
[328669582,1717686680485,-669.15,0.00029315,4]
[328669583,1717686680495,-500.0,0.00029315,4]
[328669584,1717686680504,-500.0,0.00029315,4]
[328669585,1717686680514,-500.0,0.00029315,4]
[328669586,1717686680524,-1343.56,0.00029315,4]
[328669587,1717686680534,-500.0,0.00029315,4]
[328669588,1717686680548,-500.0,0.00029315,4]
[328669589,1717686680558,-500.0,0.00029315,4]
[328669590,1717686680567,-500.0,0.00029315,4]
[328669591,1717686680579,-500.0,0.00029315,4]
[328669592,1717686680588,-500.0,0.00029315,4]
[328669593,1717686680598,-500.0,0.00029315,4]
[328669594,1717686680608,-740.29,0.00029315,4]
[328669595,1717686680620,-500.0,0.00029315,4]
[328669596,1717686680630,-252.16643606,0.00029315,4]
[328669597,1717686680639,-500.0,0.00029315,4]
[328669598,1717686680649,-781.97,0.00029315,4]
[328669599,1717686680658,-500.0,0.00029315,4]
[328669600,1717686680667,-1229.55,0.00029315,4]
[328669601,1717686680678,-500.0,0.00029315,4]
[328669602,1717686680687,-2000.0,0.00029315,21]
[328669603,1717686680696,-500.0,0.00029315,4]
[328669604,1717686680705,-500.0,0.00029315,4]
[328669605,1717686680714,-5063.26,0.00029315,4]
[328669606,1717686680724,-1206.05,0.00029315,4]
[328669607,1717686680734,-1584.5,0.00029315,4]
[328669608,1717686680743,-731.79,0.00029315,4]
[328669609,1717686680753,-500.0,0.00029315,4]
[328669610,1717686680762,-1101.15,0.00029315,4]
[328669611,1717686680772,-537.05,0.00029315,4]
[328669612,1717686680781,-500.0,0.00029315,4]
[328669613,1717686680790,-674.4,0.00029315,4]
[328669614,1717686680799,-500.0,0.00029315,4]
[328669615,1717686680808,-1141.68,0.00029315,4]
[328669616,1717686680817,-500.0,0.00029315,4]
[328669617,1717686680826,-3311.84501155,0.0002934,2]
[328669618,1717686680836,-2704.99915872,0.00029389,7]
[328669619,1717686680846,-1065.92,0.000294,2]
[328669620,1717686680855,-226.62818763,0.000295,3]
[328669621,1717686680865,-1526.118707,0.000295,2]
[328669622,1717686680874,-3311.84501155,0.00029526,2]
[328669623,1717686680883,-500.0,0.00029532,2]
[328669624,1717686680892,-257.83810387,0.00029532,2]
[328669625,1717686680902,-619.56,0.00029589,4]
[328669626,1717686680911,-290.53570614,0.00029589,4]
[328669627,1717686680920,-250.0,0.00029589,4]
[328669628,1717686680930,-500.0,0.00029589,4]
[328669629,1717686680939,-500.0,0.00029589,4]
[328669630,1717686680948,-500.0,0.00029589,4]
[328669631,1717686680957,-500.0,0.00029589,4]
[328669632,1717686680966,-531.76,0.00029589,4]
[328669633,1717686680975,-500.0,0.00029589,4]
[328669634,1717686680986,-500.0,0.00029589,2]
[328669635,1717686680995,-636.0,0.00029589,4]
[328669636,1717686681004,-644.36777009,0.00029589,4]
[328669637,1717686681013,-166.95541392,0.00029589,4]
[328669638,1717686681023,-500.0,0.00029589,4]
[328669639,1717686681032,-500.0,0.00029589,4]
[328669640,1717686681042,-291.54677033,0.00029589,4]
[328669641,1717686681051,-500.0,0.00029589,4]
[328669642,1717686681061,-500.0,0.00029589,4]
[328669643,1717686681070,-517.51,0.00029589,4]
[328669644,1717686681079,-500.0,0.00029589,4]
[328669645,1717686681088,-500.0,0.00029589,4]
[328669646,1717686681097,-500.0,0.00029589,4]
[328669647,1717686681107,-1016.7,0.00029589,4]
[328669648,1717686681116,-500.0,0.00029589,4]
[328669649,1717686681125,-500.0,0.00029589,4]
[328669650,1717686681135,-500.0,0.00029589,4]
[328669651,1717686681144,-500.0,0.00029589,4]
[328669652,1717686681153,-500.0,0.00029589,4]
[328669653,1717686681162,-500.0,0.00029589,4]
[328669654,1717686681171,-500.0,0.00029589,4]
[328669655,1717686681182,-500.0,0.00029589,4]
[328669656,1717686681191,-500.0,0.00029589,4]
[328669657,1717686681200,-500.0,0.00029589,4]
[328669658,1717686681209,-468.89172561,0.00029589,4]
[328669659,1717686681219,-500.0,0.00029589,4]
[328669660,1717686681228,-500.0,0.00029589,4]
[328669661,1717686681237,-500.0,0.00029589,4]
[328669662,1717686681246,-500.0,0.00029589,4]
[328669663,1717686681255,-500.0,0.00029589,4]
[328669664,1717686681265,-500.0,0.00029589,4]
[328669665,1717686681274,-500.0,0.00029589,4]
[328669666,1717686681283,-150.0,0.00029589,4]
[328669667,1717686681292,-500.0,0.00029589,4]
[328669668,1717686681302,-500.0,0.00029589,4]
[328669669,1717686681311,-573.51,0.00029589,4]
[328669670,1717686681320,-502.72,0.00029589,4]
[328669671,1717686681329,-500.0,0.00029589,4]
[328669672,1717686681339,-500.0,0.00029589,4]
[328669673,1717686681348,-778.52,0.00029589,4]
[328669674,1717686681358,-500.0,0.00029589,4]
[328669675,1717686681367,-565.04,0.00029589,4]
[328669676,1717686681377,-1965.25,0.00029589,4]
[328669677,1717686681386,-500.0,0.00029589,4]
[328669678,1717686681395,-1598.65,0.00029589,4]
[328669679,1717686681405,-952.89,0.00029589,4]
[328669680,1717686681414,-500.0,0.00029589,4]
[328669681,1717686681423,-886.3,0.00029589,4]
[328669682,1717686681435,-2073.66,0.00029589,4]
[328669683,1717686681445,-3741.02,0.00029589,4]
[328669684,1717686681454,-500.0,0.00029589,4]
[328669685,1717686681463,-964.49,0.00029589,4]
[328669686,1717686681472,-500.0,0.00029589,4]
[328669687,1717686681482,-500.0,0.00029589,4]
[328669688,1717686681491,-500.0,0.00029589,4]
[328669689,1717686681501,-500.0,0.00029589,4]
[328669690,1717686681510,-500.0,0.00029589,4]
[328669691,1717686681520,-500.0,0.00029589,4]
[328669692,1717686681529,-1778.3,0.00029589,4]
[328669693,1717686681542,-500.0,0.00029589,4]
[328669694,1717686681551,-500.0,0.00029589,4]
[328669695,1717686681561,-500.0,0.00029589,4]
[328669696,1717686681570,-958.91,0.00029589,4]
[328669697,1717686681582,-500.0,0.00029589,4]
[328669698,1717686681591,-453.49739831,0.00029589,4]
[328669699,1717686681600,-1603.64,0.00029589,4]
[328669700,1717686681609,-1509.84,0.00029589,4]
[328669701,1717686681621,-500.0,0.00029589,4]
[328669702,1717686681631,-500.0,0.00029589,4]
[328669703,1717686681640,-500.0,0.00029589,4]
[328669704,1717686681650,-1090.54,0.00029589,4]
[328669705,1717686681659,-500.0,0.00029589,4]
[328669706,1717686681668,-500.0,0.00029589,4]
[328669707,1717686681681,-500.0,0.00029589,4]
[328669708,1717686681690,-500.0,0.00029589,4]
[328669709,1717686681699,-392.47002244,0.00029589,4]
[328669710,1717686681709,-686.36,0.00029589,4]
[328669711,1717686681718,-500.0,0.00029589,4]
[328669712,1717686681728,-1463.21,0.00029589,4]
[328669713,1717686681737,-500.0,0.00029589,4]
[328669714,1717686681746,-723.48,0.00029589,4]
[328669715,1717686681756,-958.42,0.00029589,4]
[328669716,1717686681766,-500.0,0.00029589,4]
[328669717,1717686681776,-633.24,0.00029589,4]
[328669718,1717686681786,-608.51,0.00029589,4]
[328669719,1717686681795,-298.74471492,0.00029589,4]
[328669720,1717686681804,-500.0,0.00029589,4]
[328669721,1717686681813,-500.0,0.00029589,4]
[328669722,1717686681823,-880.06,0.00029589,4]
[328669723,1717686681832,-500.0,0.00029589,4]
[328669724,1717686681842,-500.0,0.00029589,4]
[328669725,1717686681851,-500.0,0.00029589,4]
[328669726,1717686681860,-916.95,0.00029589,4]
[328669727,1717686681870,-500.0,0.00029589,4]
[328669728,1717686681879,-500.0,0.00029589,4]
[328669729,1717686681888,-500.0,0.00029589,4]
[328669730,1717686681898,-500.0,0.00029589,4]
[328669731,1717686681907,-500.0,0.00029589,4]
[328669732,1717686681916,-500.0,0.00029589,4]
[328669733,1717686681926,-2146.13,0.00029589,4]
[328669734,1717686681937,-500.0,0.00029589,4]
[328669735,1717686681946,-500.0,0.00029589,4]
[328669736,1717686681955,-4182.97,0.00029589,4]
[328669737,1717686681964,-2172.84,0.00029589,4]
[328669738,1717686681974,-878.93,0.00029589,4]
[328669739,1717686681983,-500.0,0.00029589,4]
[328669740,1717686681992,-500.0,0.00029589,4]
[328669741,1717686682001,-500.0,0.00029589,4]
[328669742,1717686682011,-652.65,0.00029589,4]
[328669743,1717686682020,-500.0,0.00029589,4]
[328669744,1717686682030,-943.09,0.00029589,4]
[328669745,1717686682039,-500.0,0.00029589,4]
[328669746,1717686682049,-1798.64,0.00029589,4]
[328669747,1717686682058,-584.12,0.00029589,4]
[328669748,1717686682067,-2073.32,0.00029589,4]
[328669749,1717686682077,-500.0,0.00029589,4]
[328669750,1717686682086,-1369.53,0.00029589,4]
[328669751,1717686682095,-500.0,0.00029589,4]
[328669752,1717686682105,-500.0,0.00029589,4]
[328669753,1717686682114,-1101.45,0.00029589,4]
[328669754,1717686682123,-1246.45,0.00029589,4]
[328669755,1717686682133,-551.64,0.00029589,4]
[328669756,1717686682142,-576.02,0.00029589,4]
[328669757,1717686682152,-500.0,0.00029589,4]
[328669758,1717686682161,-897.91,0.00029589,4]
[328669759,1717686682170,-500.0,0.00029589,4]
[328669760,1717686682180,-1745.14,0.00029589,4]
[328669761,1717686682189,-1224.62,0.00029589,4]
[328669762,1717686682198,-528.54,0.00029589,4]
[328669763,1717686682207,-500.0,0.00029589,4]
[328669764,1717686682217,-500.0,0.00029589,4]
[328669765,1717686682227,-1556.05,0.00029589,4]
[328669766,1717686682237,-2487.78,0.00029589,4]
[328669767,1717686682247,-669.15,0.00029589,4]
[328669768,1717686682256,-500.0,0.00029589,4]
[328669769,1717686682265,-221.68682545,0.00029589,4]
[328669770,1717686682274,-500.0,0.00029589,4]
[328669771,1717686682283,-1343.56,0.00029589,4]
[328669772,1717686682292,-500.0,0.00029589,4]
[328669773,1717686682301,-484.86529005,0.00029589,4]
[328669774,1717686682311,-500.0,0.00029589,4]
[328669775,1717686682321,-500.0,0.00029589,4]
[328669776,1717686682380,-500.0,0.00029589,4]
[328669777,1717686682390,-500.0,0.00029589,4]
[328669778,1717686682400,-500.0,0.00029589,4]
[328669779,1717686682409,-740.29,0.00029589,4]
[328669780,1717686682417,-500.0,0.00029589,4]
[328669781,1717686682426,-500.0,0.00029589,4]
[328669782,1717686682437,-781.97,0.00029589,4]
[328669783,1717686682446,-500.0,0.00029589,4]
[328669784,1717686682455,-1229.55,0.00029589,4]
[328669785,1717686682465,-500.0,0.00029589,4]
[328669786,1717686682474,-2000.0,0.00029589,21]
[328669787,1717686682484,-500.0,0.00029589,4]
[328669788,1717686682493,-500.0,0.00029589,4]
[328669789,1717686682503,-5063.26,0.00029589,4]
[328669790,1717686682512,-1206.05,0.00029589,4]
[328669791,1717686682521,-1584.5,0.00029589,4]
[328669792,1717686682531,-731.79,0.00029589,4]
[328669793,1717686682543,-500.0,0.00029589,4]
[328669794,1717686682553,-1101.15,0.00029589,4]
[328669795,1717686682562,-537.05,0.00029589,4]
[328669796,1717686682571,-500.0,0.00029589,4]
[328669797,1717686682582,-674.4,0.00029589,4]
[328669798,1717686682591,-500.0,0.00029589,4]
[328669799,1717686682600,-1141.68,0.00029589,4]
[328669800,1717686682609,-500.0,0.00029589,4]
[328669801,1717686682620,-250000.0,0.000296,2]
[328669802,1717686682629,-179.36248304,0.00029642,2]
[328669803,1717686682638,-150.0,0.00029651,2]
[328669804,1717686682647,-153.26311234,0.00029666,2]
[328669805,1717686682656,-166.66666667,0.00029669,2]
[328669806,1717686682665,-166.36824213,0.00029681,2]
[328669807,1717686682674,-457.29904398,0.00029698,2]
[328669808,1717686682686,-235.91541217,0.00029698,2]
[328669809,1717686682695,-279.28726069,0.00029699,2]
[328669810,1717686682704,-280.0,0.000297,2]
[328669811,1717686682713,-179.36248304,0.00029709,2]
[328669812,1717686682722,-3311.84501155,0.00029713,2]
[328669813,1717686682731,-153.26311234,0.0002972,2]
[328669814,1717686682740,-160.55779961,0.00029722,2]
[328669815,1717686682749,-154.56264195,0.00029726,2]
[328669816,1717686682758,-406.54517241,0.0002973,2]
[328669817,1717686682767,-406.54517241,0.00029733,2]
[328669818,1717686682776,-457.29904398,0.00029743,2]
[328669819,1717686682785,-730.75720455,0.00029746,2]
[328669820,1717686682794,-166.97172071,0.00029763,2]
[328669821,1717686682803,-157.81797772,0.00029767,2]
[328669822,1717686682812,-160.55779961,0.00029776,2]
[328669823,1717686682822,-154.09323601,0.00029793,2]
[328669824,1717686682831,-730.75720455,0.00029811,2]
[328669825,1717686682841,-150.0,0.00029819,2]
[328669826,1717686682852,-730.75720455,0.00029822,2]
[328669827,1717686682862,-297.70020373,0.00029829,2]
[328669828,1717686682871,-297.70020373,0.00029831,2]
[328669829,1717686682881,-150.5,0.00029833,15]
[328669830,1717686682891,-150.5,0.00029843,15]
[328669831,1717686682900,-179.36248304,0.00029847,2]
[328669832,1717686682909,-153.26311234,0.00029848,2]
[328669833,1717686682920,-166.36824213,0.00029849,2]
[328669834,1717686682930,-200.0,0.0002985,2]
[328669835,1717686682939,-201.00222802,0.0002985,2]
[328669836,1717686682949,-256.3,0.00029853,15]
[328669837,1717686682958,-150.5,0.00029853,15]
[328669838,1717686682968,-163.31434379,0.00029859,2]
[328669839,1717686682977,-619.56,0.00029863,4]
[328669840,1717686682988,-250.0,0.00029863,4]
[328669841,1717686682997,-500.0,0.00029863,4]
[328669842,1717686683006,-500.0,0.00029863,4]
[328669843,1717686683015,-500.0,0.00029863,4]
[328669844,1717686683026,-500.0,0.00029863,4]
[328669845,1717686683036,-531.76,0.00029863,4]
[328669846,1717686683045,-500.0,0.00029863,4]
[328669847,1717686683055,-500.0,0.00029863,2]
[328669848,1717686683065,-636.0,0.00029863,4]
[328669849,1717686683075,-500.0,0.00029863,4]
[328669850,1717686683085,-500.0,0.00029863,4]
[328669851,1717686683095,-500.0,0.00029863,4]
[328669852,1717686683106,-500.0,0.00029863,4]
[328669853,1717686683116,-517.51,0.00029863,4]
[328669854,1717686683126,-500.0,0.00029863,4]
[328669855,1717686683135,-500.0,0.00029863,4]
[328669856,1717686683146,-500.0,0.00029863,4]
[328669857,1717686683155,-1016.7,0.00029863,4]
[328669858,1717686683164,-500.0,0.00029863,4]
[328669859,1717686683173,-500.0,0.00029863,4]
[328669860,1717686683184,-500.0,0.00029863,4]
[328669861,1717686683194,-500.0,0.00029863,4]
[328669862,1717686683203,-500.0,0.00029863,4]
[328669863,1717686683212,-500.0,0.00029863,4]
[328669864,1717686683222,-500.0,0.00029863,4]
[328669865,1717686683231,-500.0,0.00029863,4]
[328669866,1717686683240,-416.75213361,0.00029863,4]
[328669867,1717686683250,-500.0,0.00029863,4]
[328669868,1717686683259,-500.0,0.00029863,4]
[328669869,1717686683268,-500.0,0.00029863,4]
[328669870,1717686683278,-500.0,0.00029863,4]
[328669871,1717686683287,-500.0,0.00029863,4]
[328669872,1717686683298,-500.0,0.00029863,4]
[328669873,1717686683307,-500.0,0.00029863,4]
[328669874,1717686683316,-500.0,0.00029863,4]
[328669875,1717686683325,-150.0,0.00029863,4]
[328669876,1717686683335,-456.66252775,0.00029863,4]
[328669877,1717686683346,-500.0,0.00029863,4]
[328669878,1717686683355,-573.51,0.00029863,4]
[328669879,1717686683364,-502.72,0.00029863,4]
[328669880,1717686683373,-500.0,0.00029863,4]
[328669881,1717686683382,-500.0,0.00029863,4]
[328669882,1717686683391,-778.52,0.00029863,4]
[328669883,1717686683401,-500.0,0.00029863,4]
[328669884,1717686683413,-565.04,0.00029863,4]
[328669885,1717686683423,-1965.25,0.00029863,4]
[328669886,1717686683433,-500.0,0.00029863,4]
[328669887,1717686683443,-1598.65,0.00029863,4]
[328669888,1717686683452,-952.89,0.00029863,4]
[328669889,1717686683461,-500.0,0.00029863,4]
[328669890,1717686683471,-886.3,0.00029863,4]
[328669891,1717686683482,-2073.66,0.00029863,4]
[328669892,1717686683492,-3741.02,0.00029863,4]
[328669893,1717686683502,-229.83135342,0.00029863,4]
[328669894,1717686683511,-964.49,0.00029863,4]
[328669895,1717686683520,-500.0,0.00029863,4]
[328669896,1717686683530,-500.0,0.00029863,4]
[328669897,1717686683543,-500.0,0.00029863,4]
[328669898,1717686683552,-500.0,0.00029863,4]
[328669899,1717686683562,-500.0,0.00029863,4]
[328669900,1717686683571,-500.0,0.00029863,4]
[328669901,1717686683584,-1778.3,0.00029863,4]
[328669902,1717686683594,-500.0,0.00029863,4]
[328669903,1717686683603,-500.0,0.00029863,4]
[328669904,1717686683615,-500.0,0.00029863,4]
[328669905,1717686683625,-958.91,0.00029863,4]
[328669906,1717686683634,-500.0,0.00029863,4]
[328669907,1717686683644,-1603.64,0.00029863,4]
[328669908,1717686683654,-1509.84,0.00029863,4]
[328669909,1717686683663,-277.12817918,0.00029863,4]
[328669910,1717686683671,-500.0,0.00029863,4]
[328669911,1717686683681,-500.0,0.00029863,4]
[328669912,1717686683690,-1090.54,0.00029863,4]
[328669913,1717686683700,-500.0,0.00029863,4]
[328669914,1717686683710,-500.0,0.00029863,4]
[328669915,1717686683720,-500.0,0.00029863,4]
[328669916,1717686683729,-500.0,0.00029863,4]
[328669917,1717686683738,-686.36,0.00029863,4]
[328669918,1717686683748,-500.0,0.00029863,4]
[328669919,1717686683757,-1463.21,0.00029863,4]
[328669920,1717686683766,-500.0,0.00029863,4]
[328669921,1717686683776,-723.48,0.00029863,4]
[328669922,1717686683784,-958.42,0.00029863,4]
[328669923,1717686683793,-500.0,0.00029863,4]
[328669924,1717686683803,-633.24,0.00029863,4]
[328669925,1717686683813,-608.51,0.00029863,4]
[328669926,1717686683823,-500.0,0.00029863,4]
[328669927,1717686683832,-500.0,0.00029863,4]
[328669928,1717686683841,-880.06,0.00029863,4]
[328669929,1717686683851,-500.0,0.00029863,4]
[328669930,1717686683861,-591.29451536,0.00029863,4]
[328669931,1717686683871,-500.0,0.00029863,4]
[328669932,1717686683880,-916.95,0.00029863,4]
[328669933,1717686683890,-500.0,0.00029863,4]
[328669934,1717686683901,-500.0,0.00029863,4]
[328669935,1717686683912,-500.0,0.00029863,4]
[328669936,1717686683921,-500.0,0.00029863,4]